[Event "Rapid Tournament (RAP)"]
[Site "Biel, Switzerland"]
[Date "2026.07.12"]
[Round "8.6"]
[White "Gopal, G.N."]
[Black "Cao, Qingfeng"]
[Result "1/2-1/2"]
[TimeControl "15 + 5"]
[WhiteTitle "-"]
[BlackTitle "-"]
[WhiteFideId "5015693"]
[BlackFideId "8627568"]
[WhiteElo "2471"]
[BlackElo "2265"]

1. e4 {[%clk 00:15:08]} {[%emt 00:00:02]} c6 {[%clk 00:14:57]} {[%emt
00:00:14]} 2. d4 {[%clk 00:15:11]} {[%emt 00:00:01]} d5 {[%clk 00:15:00]}
{[%emt 00:00:01]} 3. e5 {[%clk 00:15:15]} {[%emt 00:00:02]} Bf5 {[%clk
00:15:00]} {[%emt 00:00:02]} 4. Nd2 {[%clk 00:15:03]} {[%emt 00:00:19]} e6
{[%clk 00:14:57]} {[%emt 00:00:07]} 5. Nb3 {[%clk 00:15:07]} {[%emt 00:00:02]}
a6 {[%clk 00:14:58]} {[%emt 00:00:04]} 6. Nf3 {[%clk 00:15:08]} {[%emt
00:00:04]} c5 {[%clk 00:14:58]} {[%emt 00:00:06]} 7. dxc5 {[%clk 00:13:17]}
{[%emt 00:01:56]} Bxc5 {[%clk 00:14:59]} {[%emt 00:00:03]} 8. Nxc5 {[%clk
00:13:20]} {[%emt 00:00:02]} Qa5+ {[%clk 00:15:03]} {[%emt 00:00:02]} 9. c3
{[%clk 00:13:22]} {[%emt 00:00:02]} Qxc5 {[%clk 00:15:05]} {[%emt 00:00:02]} 10.
Nd4 {[%clk 00:13:09]} {[%emt 00:00:19]} Ne7 {[%clk 00:15:05]} {[%emt 00:00:05]}
11. Be2 {[%clk 00:12:38]} {[%emt 00:00:36]} Qc7 {[%clk 00:14:59]} {[%emt
00:00:11]} 12. f4 {[%clk 00:12:25]} {[%emt 00:00:19]} Nbc6 {[%clk 00:14:21]}
{[%emt 00:00:42]} 13. Be3 {[%clk 00:10:26]} {[%emt 00:02:04]} g5 {[%clk
00:11:48]} {[%emt 00:02:38]} 14. fxg5 {[%clk 00:09:28]} {[%emt 00:01:03]} Nxe5
{[%clk 00:10:56]} {[%emt 00:00:57]} 15. O-O {[%clk 00:09:03]} {[%emt 00:00:30]}
Nc4 {[%clk 00:08:46]} {[%emt 00:02:14]} 16. Bf4 {[%clk 00:08:00]} {[%emt
00:01:08]} Qd7 {[%clk 00:08:26]} {[%emt 00:00:25]} 17. b3 {[%clk 00:05:51]}
{[%emt 00:02:14]} Nd6 {[%clk 00:08:17]} {[%emt 00:00:14]} 18. c4 {[%clk
00:05:55]} {[%emt 00:00:01]} Be4 {[%clk 00:07:23]} {[%emt 00:00:58]} 19. Bf3
{[%clk 00:05:30]} {[%emt 00:00:31]} Ndf5 {[%clk 00:04:47]} {[%emt 00:02:42]} 20.
Nxf5 {[%clk 00:04:55]} {[%emt 00:00:40]} Bxf5 {[%clk 00:03:27]} {[%emt
00:01:24]} 21. cxd5 {[%clk 00:03:53]} {[%emt 00:01:07]} exd5 {[%clk 00:03:08]}
{[%emt 00:00:24]} 22. Qd4 {[%clk 00:01:56]} {[%emt 00:02:02]} O-O {[%clk
00:03:06]} {[%emt 00:00:07]} 23. Rfe1 {[%clk 00:01:33]} {[%emt 00:00:28]} Nc6
{[%clk 00:02:30]} {[%emt 00:00:42]} 24. Qf6 {[%clk 00:01:00]} {[%emt 00:00:38]}
Rfe8 {[%clk 00:02:21]} {[%emt 00:00:14]} 25. Rad1 {[%clk 00:00:38]} {[%emt
00:00:28]} Rxe1+ {[%clk 00:01:50]} {[%emt 00:00:36]} 26. Rxe1 {[%clk 00:00:42]}
Re8 {[%clk 00:01:47]} {[%emt 00:00:07]} 27. Rxe8+ {[%clk 00:00:21]} {[%emt
00:00:26]} Qxe8 {[%clk 00:01:51]} {[%emt 00:00:01]} 28. Kf2 {[%clk 00:00:24]}
{[%emt 00:00:02]} Be4 {[%clk 00:01:24]} {[%emt 00:00:32]} 29. Be2 {[%clk
00:00:18]} {[%emt 00:00:11]} Qe6 {[%clk 00:01:07]} {[%emt 00:00:22]} 30. h4
{[%clk 00:00:19]} {[%emt 00:00:04]} Nb4 {[%clk 00:00:24]} {[%emt 00:00:48]} 31.
a3 {[%clk 00:00:13]} {[%emt 00:00:12]} Nd3+ {[%clk 00:00:27]} {[%emt 00:00:02]}
32. Bxd3 {[%clk 00:00:16]} {[%emt 00:00:02]} Bxd3 {[%clk 00:00:31]} 33. Qd8+
{[%clk 00:00:13]} {[%emt 00:00:08]} Kg7 {[%clk 00:00:35]} 34. Be3 {[%clk
00:00:14]} {[%emt 00:00:04]} Qf5+ {[%clk 00:00:13]} {[%emt 00:00:27]} 35. Kg1
{[%clk 00:00:14]} {[%emt 00:00:05]} Qe5 {[%emt 00:00:06]} 36. Qb6 {[%clk
00:00:17]} Qe7 {[%clk 00:00:06]} {[%emt 00:00:12]} 37. h5 {[%clk 00:00:20]}
{[%emt 00:00:03]} Bf5 {[%clk 00:00:06]} {[%emt 00:00:05]} 38. Qd4+ {[%clk
00:00:20]} {[%emt 00:00:04]} Kg8 {[%clk 00:00:09]} {[%emt 00:00:02]} 39. h6
{[%clk 00:00:24]} f6 {[%clk 00:00:10]} {[%emt 00:00:05]} 40. gxf6 {[%clk
00:00:28]} {[%emt 00:00:01]} Qe4 {[%clk 00:00:10]} {[%emt 00:00:05]} 41. Qb6
{[%clk 00:00:16]} {[%emt 00:00:17]} Qb1+ {[%clk 00:00:08]} {[%emt 00:00:07]} 42.
Kh2 {[%clk 00:00:19]} {[%emt 00:00:01]} Qe4 {[%clk 00:00:11]} {[%emt 00:00:02]}
43. Qxb7 {[%clk 00:00:09]} {[%emt 00:00:15]} Qh4+ {[%clk 00:00:14]} {[%emt
00:00:02]} 44. Kg1 {[%clk 00:00:12]} {[%emt 00:00:02]} Qe1+ {[%clk 00:00:14]}
{[%emt 00:00:05]} 45. Kh2 {[%clk 00:00:17]} 1/2-1/2

[Event "Rapid Tournament (RAP)"]
[Site "Biel, Switzerland"]
[Date "2026.07.12"]
[Round "8.7"]
[White "Gloeckler, Christian"]
[Black "Balabayeva, Xeniya"]
[Result "1-0"]
[TimeControl "15 + 5"]
[WhiteTitle "-"]
[BlackTitle "-"]
[WhiteFideId "34608966"]
[BlackFideId "13719688"]
[WhiteElo "2332"]
[BlackElo "2291"]

1. e4 {[%clk 00:15:07]} {[%emt 00:00:01]} e5 {[%clk 00:15:07]} {[%emt
00:00:06]} 2. Nf3 {[%clk 00:15:11]} Nc6 {[%clk 00:15:11]} 3. Bc4 {[%clk
00:15:13]} {[%emt 00:00:02]} Nf6 {[%clk 00:15:13]} {[%emt 00:00:02]} 4. d3
{[%clk 00:15:17]} {[%emt 00:00:01]} Be7 {[%clk 00:15:17]} {[%emt 00:00:02]} 5.
O-O {[%clk 00:15:08]} {[%emt 00:00:14]} O-O {[%clk 00:15:19]} {[%emt 00:00:03]}
6. Nc3 {[%clk 00:15:09]} {[%emt 00:00:04]} d6 {[%clk 00:15:17]} {[%emt
00:00:07]} 7. a4 {[%clk 00:15:09]} {[%emt 00:00:04]} a5 {[%clk 00:15:09]}
{[%emt 00:00:14]} 8. h3 {[%clk 00:14:40]} {[%emt 00:00:34]} h6 {[%clk
00:15:07]} {[%emt 00:00:08]} 9. Re1 {[%clk 00:14:16]} {[%emt 00:00:28]} Be6
{[%clk 00:14:45]} {[%emt 00:00:27]} 10. Nd5 {[%clk 00:12:59]} {[%emt 00:01:21]}
Qd7 {[%clk 00:14:03]} {[%emt 00:00:47]} 11. c3 {[%clk 00:12:42]} {[%emt
00:00:23]} Bd8 {[%clk 00:13:24]} {[%emt 00:00:44]} 12. Qb3 {[%clk 00:11:38]}
{[%emt 00:01:10]} Rb8 {[%clk 00:12:47]} {[%emt 00:00:42]} 13. Be3 {[%clk
00:11:30]} {[%emt 00:00:12]} Kh7 {[%clk 00:11:08]} {[%emt 00:01:44]} 14. Kh2
{[%clk 00:10:14]} {[%emt 00:01:21]} Nh5 {[%clk 00:09:02]} {[%emt 00:02:11]} 15.
Rac1 {[%clk 00:08:29]} {[%emt 00:01:50]} g6 {[%clk 00:07:41]} {[%emt 00:01:26]}
16. d4 {[%clk 00:07:56]} {[%emt 00:00:38]} Re8 {[%clk 00:05:39]} {[%emt
00:02:07]} 17. Qc2 {[%clk 00:05:00]} {[%emt 00:03:02]} exd4 {[%clk 00:04:44]}
{[%emt 00:01:00]} 18. cxd4 {[%clk 00:04:46]} {[%emt 00:00:18]} Bxd5 {[%clk
00:02:17]} {[%emt 00:02:32]} 19. exd5 {[%clk 00:04:40]} {[%emt 00:00:11]} Nb4
{[%clk 00:01:43]} {[%emt 00:00:39]} 20. Qd2 {[%clk 00:04:37]} {[%emt 00:00:08]}
g5 {[%clk 00:01:17]} {[%emt 00:00:31]} 21. Bb5 {[%clk 00:04:24]} {[%emt
00:00:18]} c6 {[%clk 00:01:17]} {[%emt 00:00:05]} 22. dxc6 {[%clk 00:04:09]}
{[%emt 00:00:21]} bxc6 {[%clk 00:01:20]} {[%emt 00:00:02]} 23. Be2 {[%clk
00:01:23]} {[%emt 00:02:50]} Ng7 {[%clk 00:00:45]} {[%emt 00:00:40]} 24. h4
{[%clk 00:00:45]} {[%emt 00:00:43]} g4 {[%clk 00:00:31]} {[%emt 00:00:18]} 25.
Ng1 {[%clk 00:00:47]} {[%emt 00:00:04]} Bxh4 {[%clk 00:00:28]} {[%emt
00:00:08]} 26. g3 {[%clk 00:00:25]} {[%emt 00:00:27]} Bf6 {[%clk 00:00:14]}
{[%emt 00:00:18]} 27. Bxh6 {[%clk 00:00:18]} {[%emt 00:00:13]} Qf5 {[%clk
00:00:16]} {[%emt 00:00:03]} 28. Be3 {[%clk 00:00:10]} {[%emt 00:00:12]} Ne6
{[%clk 00:00:11]} {[%emt 00:00:11]} 29. Rxc6 {[%clk 00:00:07]} {[%emt
00:00:08]} Qh5+ {[%clk 00:00:14]} {[%emt 00:00:02]} 30. Kg2 {[%clk 00:00:10]}
{[%emt 00:00:01]} Qd5+ {[%clk 00:00:13]} {[%emt 00:00:07]} 31. Kh2 {[%clk
00:00:12]} {[%emt 00:00:03]} Qxc6 {[%clk 00:00:17]} {[%emt 00:00:02]} 32. Bxg4
{[%clk 00:00:13]} {[%emt 00:00:03]} Bg7 {[%clk 00:00:09]} {[%emt 00:00:13]} 33.
Rc1 {[%clk 00:00:12]} {[%emt 00:00:06]} Qd5 {[%clk 00:00:12]} {[%emt 00:00:02]}
34. Ne2 {[%clk 00:00:10]} {[%emt 00:00:08]} Rbc8 {[%clk 00:00:10]} {[%emt
00:00:07]} 35. Nc3 {[%clk 00:00:13]} {[%emt 00:00:02]} Qb3 {[%clk 00:00:09]}
{[%emt 00:00:05]} 36. d5 {[%clk 00:00:12]} {[%emt 00:00:06]} Nc5 {[%clk
00:00:10]} {[%emt 00:00:04]} 37. Bf5+ {[%clk 00:00:09]} {[%emt 00:00:07]} Kg8
{[%clk 00:00:11]} {[%emt 00:00:04]} 38. Bh6 {[%clk 00:00:12]} {[%emt 00:00:03]}
Ne4 {[%clk 00:00:08]} {[%emt 00:00:08]} 39. Nxe4 {[%clk 00:00:07]} {[%emt
00:00:10]} Bxh6 {[%clk 00:00:07]} {[%emt 00:00:05]} 40. Qxh6 {[%clk 00:00:10]}
{[%emt 00:00:03]} 1-0

[Event "Rapid Tournament (RAP)"]
[Site "Biel, Switzerland"]
[Date "2026.07.12"]
[Round "8.8"]
[White "Fernandes Barbosa Dos Santos, Gabriel"]
[Black "Savitha, Shri B"]
[Result "0-1"]
[TimeControl "15 + 5"]
[WhiteTitle "-"]
[BlackTitle "-"]
[WhiteFideId "1354388"]
[BlackFideId "35061887"]
[WhiteElo "2199"]
[BlackElo "2317"]

1. e4 {[%clk 00:15:08]} c5 {[%clk 00:15:09]} {[%emt 00:00:02]} 2. Nf3 {[%clk
00:15:11]} {[%emt 00:00:02]} e6 {[%clk 00:15:13]} {[%emt 00:00:03]} 3. d4
{[%clk 00:15:14]} cxd4 {[%clk 00:15:17]} 4. Nxd4 {[%clk 00:15:18]} {[%emt
00:00:02]} Nc6 {[%clk 00:15:22]} 5. Nc3 {[%clk 00:15:20]} {[%emt 00:00:03]} Qc7
{[%clk 00:15:26]} {[%emt 00:00:01]} 6. Be3 {[%clk 00:15:22]} {[%emt 00:00:03]}
a6 {[%clk 00:15:30]} {[%emt 00:00:01]} 7. f4 {[%clk 00:15:11]} {[%emt
00:00:16]} b5 {[%clk 00:15:13]} {[%emt 00:00:23]} 8. Nb3 {[%clk 00:15:06]}
{[%emt 00:00:09]} Bb7 {[%clk 00:13:47]} {[%emt 00:01:29]} 9. Bd3 {[%clk
00:15:07]} {[%emt 00:00:05]} d6 {[%clk 00:12:44]} {[%emt 00:01:08]} 10. O-O
{[%clk 00:14:50]} {[%emt 00:00:22]} Nf6 {[%clk 00:12:48]} {[%emt 00:00:02]} 11.
Qf3 {[%clk 00:13:50]} {[%emt 00:01:04]} h5 {[%clk 00:10:40]} {[%emt 00:02:13]}
12. Rae1 {[%clk 00:13:27]} {[%emt 00:00:29]} Ng4 {[%clk 00:10:27]} {[%emt
00:00:18]} 13. Kh1 {[%clk 00:12:29]} {[%emt 00:01:03]} Nxe3 {[%clk 00:10:12]}
{[%emt 00:00:19]} 14. Rxe3 {[%clk 00:12:30]} {[%emt 00:00:04]} Be7 {[%clk
00:09:57]} {[%emt 00:00:20]} 15. Qh3 {[%clk 00:12:11]} {[%emt 00:00:24]} Qb6
{[%clk 00:08:54]} {[%emt 00:01:09]} 16. Rfe1 {[%clk 00:12:02]} {[%emt
00:00:14]} Nb4 {[%clk 00:07:57]} {[%emt 00:01:02]} 17. Qg3 {[%clk 00:10:50]}
{[%emt 00:01:16]} g6 {[%clk 00:06:47]} {[%emt 00:01:16]} 18. f5 {[%clk
00:10:34]} {[%emt 00:00:20]} Nxd3 {[%clk 00:06:36]} {[%emt 00:00:17]} 19. Rxd3
{[%clk 00:10:13]} {[%emt 00:00:26]} gxf5 {[%clk 00:06:05]} {[%emt 00:00:35]} 20.
exf5 {[%clk 00:10:10]} {[%emt 00:00:09]} O-O-O {[%clk 00:06:02]} {[%emt
00:00:07]} 21. Qe3 {[%clk 00:07:03]} {[%emt 00:03:12]} Qxe3 {[%clk 00:05:26]}
{[%emt 00:00:40]} 22. Rexe3 {[%clk 00:07:00]} {[%emt 00:00:09]} Rhg8 {[%clk
00:05:27]} {[%emt 00:00:05]} 23. Re2 {[%clk 00:06:32]} {[%emt 00:00:33]} b4
{[%clk 00:04:09]} {[%emt 00:01:23]} 24. Ne4 {[%clk 00:05:47]} {[%emt 00:00:50]}
Rg4 {[%clk 00:03:40]} {[%emt 00:00:34]} 25. Ned2 {[%clk 00:05:20]} {[%emt
00:00:32]} Rdg8 {[%clk 00:03:37]} {[%emt 00:00:08]} 26. Nf3 {[%clk 00:05:20]}
{[%emt 00:00:05]} e5 {[%clk 00:03:40]} {[%emt 00:00:01]} 27. Rde3 {[%clk
00:03:02]} {[%emt 00:02:23]} Bg5 {[%clk 00:03:39]} {[%emt 00:00:07]} 28. h3
{[%clk 00:01:18]} {[%emt 00:01:48]} Rg3 {[%clk 00:02:18]} {[%emt 00:01:26]} 29.
Nxg5 {[%clk 00:00:57]} {[%emt 00:00:27]} R3xg5 {[%clk 00:02:20]} {[%emt
00:00:03]} 30. Kg1 {[%clk 00:00:20]} {[%emt 00:00:42]} Rxg2+ {[%clk 00:02:15]}
{[%emt 00:00:09]} 31. Rxg2 {[%clk 00:00:23]} {[%emt 00:00:02]} Rxg2+ {[%clk
00:02:19]} 32. Kf1 {[%clk 00:00:27]} {[%emt 00:00:01]} Rxc2 {[%clk 00:02:23]}
{[%emt 00:00:01]} 33. Re2 {[%clk 00:00:14]} {[%emt 00:00:18]} Rxe2 {[%clk
00:02:19]} {[%emt 00:00:09]} 34. Kxe2 {[%clk 00:00:16]} {[%emt 00:00:02]} Bd5
{[%clk 00:02:06]} {[%emt 00:00:19]} 35. Nc1 {[%clk 00:00:20]} {[%emt 00:00:02]}
Bg2 {[%clk 00:01:57]} {[%emt 00:00:14]} 36. h4 {[%clk 00:00:20]} {[%emt
00:00:05]} Be4 {[%clk 00:02:01]} 37. f6 {[%clk 00:00:15]} {[%emt 00:00:10]} Kd7
{[%clk 00:02:05]} 38. Ke3 {[%clk 00:00:19]} {[%emt 00:00:02]} Bb1 {[%clk
00:02:08]} {[%emt 00:00:02]} 39. a3 {[%clk 00:00:20]} {[%emt 00:00:03]} bxa3
{[%clk 00:02:12]} {[%emt 00:00:01]} 40. bxa3 {[%clk 00:00:24]} {[%emt
00:00:02]} Ke6 {[%clk 00:02:16]} 41. Ne2 {[%clk 00:00:16]} {[%emt 00:00:13]} d5
{[%clk 00:02:15]} {[%emt 00:00:06]} 42. Ng3 {[%clk 00:00:19]} {[%emt 00:00:03]}
Bg6 {[%clk 00:02:19]} {[%emt 00:00:01]} 43. Ne2 {[%clk 00:00:18]} {[%emt
00:00:05]} d4+ {[%clk 00:02:22]} {[%emt 00:00:03]} 44. Kd2 {[%clk 00:00:22]}
Kxf6 {[%clk 00:02:25]} {[%emt 00:00:03]} 45. a4 {[%emt 00:00:08]} 0-1

[Event "Rapid Tournament (RAP)"]
[Site "Biel, Switzerland"]
[Date "2026.07.12"]
[Round "8.9"]
[White "Habibi, Ali"]
[Black "Lu, Miaoyi"]
[Result "0-1"]
[TimeControl "15 + 5"]
[WhiteTitle "-"]
[BlackTitle "-"]
[WhiteFideId "4604393"]
[BlackFideId "8618020"]
[WhiteElo "2187"]
[BlackElo "2309"]

1. Nf3 {[%clk 00:15:09]} {[%emt 00:04:30]} Nf6 {[%clk 00:15:07]} {[%emt
00:00:03]} 2. g3 {[%clk 00:15:13]} {[%emt 00:00:01]} d5 {[%clk 00:15:09]}
{[%emt 00:00:04]} 3. Bg2 {[%clk 00:15:16]} {[%emt 00:00:01]} e6 {[%clk
00:15:12]} {[%emt 00:00:01]} 4. O-O {[%clk 00:15:18]} {[%emt 00:00:03]} Be7
{[%clk 00:15:17]} 5. c4 {[%clk 00:15:21]} {[%emt 00:00:02]} O-O {[%clk
00:15:20]} {[%emt 00:00:02]} 6. Qc2 {[%clk 00:15:25]} d4 {[%clk 00:14:54]}
{[%emt 00:00:31]} 7. d3 {[%clk 00:15:26]} {[%emt 00:00:04]} Nc6 {[%clk
00:14:49]} {[%emt 00:00:10]} 8. a3 {[%clk 00:15:28]} {[%emt 00:00:02]} a5
{[%clk 00:14:53]} {[%emt 00:00:02]} 9. b3 {[%clk 00:15:30]} {[%emt 00:00:02]}
e5 {[%clk 00:14:57]} {[%emt 00:00:02]} 10. Nbd2 {[%clk 00:15:24]} {[%emt
00:00:10]} h6 {[%clk 00:14:40]} {[%emt 00:00:23]} 11. Bb2 {[%clk 00:15:26]}
{[%emt 00:00:02]} Bf5 {[%clk 00:14:42]} {[%emt 00:00:03]} 12. Rfc1 {[%clk
00:15:13]} {[%emt 00:00:17]} Qd7 {[%clk 00:14:18]} {[%emt 00:00:30]} 13. Qd1
{[%clk 00:15:16]} {[%emt 00:00:03]} Rad8 {[%clk 00:14:04]} {[%emt 00:00:19]} 14.
Ne1 {[%clk 00:14:51]} {[%emt 00:00:29]} Rfe8 {[%clk 00:13:40]} {[%emt
00:00:30]} 15. Nc2 {[%clk 00:14:43]} {[%emt 00:00:12]} Bc5 {[%clk 00:13:26]}
{[%emt 00:00:20]} 16. f3 {[%clk 00:13:39]} {[%emt 00:01:08]} h5 {[%clk
00:12:55]} {[%emt 00:00:37]} 17. Ne4 {[%clk 00:13:35]} {[%emt 00:00:09]} Bxe4
{[%clk 00:12:22]} {[%emt 00:00:38]} 18. fxe4 {[%clk 00:13:35]} {[%emt
00:00:03]} h4 {[%clk 00:12:09]} {[%emt 00:00:19]} 19. Qf1 {[%clk 00:13:30]}
{[%emt 00:00:10]} hxg3 {[%clk 00:11:45]} {[%emt 00:00:31]} 20. hxg3 {[%clk
00:13:33]} {[%emt 00:00:01]} Qg4 {[%clk 00:10:02]} {[%emt 00:01:48]} 21. Qf3
{[%clk 00:13:36]} {[%emt 00:00:01]} Qg6 {[%clk 00:08:51]} {[%emt 00:01:17]} 22.
Rf1 {[%clk 00:13:25]} {[%emt 00:00:14]} Nh5 {[%clk 00:08:24]} {[%emt 00:00:34]}
23. g4 {[%clk 00:12:20]} {[%emt 00:01:10]} Nf4 {[%clk 00:07:20]} {[%emt
00:01:09]} 24. Bc1 {[%clk 00:12:23]} {[%emt 00:00:01]} Bd6 {[%clk 00:06:38]}
{[%emt 00:00:48]} 25. Rb1 {[%clk 00:12:19]} {[%emt 00:00:08]} Ra8 {[%clk
00:05:26]} {[%emt 00:01:17]} 26. Bd2 {[%clk 00:11:56]} {[%emt 00:00:27]} Nd8
{[%clk 00:04:43]} {[%emt 00:00:50]} 27. Rf2 {[%clk 00:11:07]} {[%emt 00:00:53]}
Nde6 {[%clk 00:04:44]} {[%emt 00:00:05]} 28. Qg3 {[%clk 00:10:50]} {[%emt
00:00:21]} Be7 {[%clk 00:03:54]} {[%emt 00:00:55]} 29. b4 {[%clk 00:09:28]}
{[%emt 00:01:28]} Qh6 {[%clk 00:03:36]} {[%emt 00:00:22]} 30. Qh2 {[%clk
00:07:12]} {[%emt 00:02:21]} Bh4 {[%clk 00:03:37]} {[%emt 00:00:05]} 31. Bf1
{[%clk 00:07:13]} {[%emt 00:00:04]} Bxf2+ {[%clk 00:02:42]} {[%emt 00:01:00]}
32. Qxf2 {[%clk 00:07:16]} {[%emt 00:00:02]} Nh3+ {[%clk 00:02:39]} {[%emt
00:00:08]} 33. Bxh3 {[%clk 00:07:18]} {[%emt 00:00:02]} Qxd2 {[%clk 00:02:43]}
{[%emt 00:00:02]} 34. Ne1 {[%clk 00:07:02]} {[%emt 00:00:20]} Nf4 {[%clk
00:02:37]} {[%emt 00:00:11]} 35. Bf1 {[%clk 00:07:03]} {[%emt 00:00:03]} axb4
{[%clk 00:02:30]} {[%emt 00:00:14]} 36. axb4 {[%clk 00:07:07]} Ra2 {[%clk
00:02:09]} {[%emt 00:00:26]} 37. Nf3 {[%clk 00:07:11]} {[%emt 00:00:02]} Qc2
{[%clk 00:01:56]} {[%emt 00:00:17]} 38. Qe1 {[%clk 00:07:08]} {[%emt 00:00:06]}
f6 {[%clk 00:01:19]} {[%emt 00:00:44]} 39. g5 {[%clk 00:06:44]} {[%emt
00:00:29]} Rea8 {[%clk 00:00:38]} {[%emt 00:00:46]} 40. gxf6 {[%clk 00:06:39]}
{[%emt 00:00:10]} gxf6 {[%clk 00:00:40]} {[%emt 00:00:03]} 41. Kh1 {[%clk
00:05:45]} {[%emt 00:00:58]} Kf7 {[%clk 00:00:41]} {[%emt 00:00:05]} 42. Rc1
{[%clk 00:04:59]} {[%emt 00:00:51]} Rh8+ {[%clk 00:00:44]} {[%emt 00:00:02]} 43.
Nh2 {[%clk 00:04:44]} {[%emt 00:00:20]} Qd2 {[%clk 00:00:30]} {[%emt 00:00:19]}
44. Qxd2 {[%clk 00:04:48]} Rxd2 {[%clk 00:00:34]} {[%emt 00:00:01]} 45. Re1
{[%clk 00:04:52]} Nxd3 {[%clk 00:00:37]} {[%emt 00:00:03]} 46. Ra1 {[%clk
00:04:42]} {[%emt 00:00:15]} Nf4 {[%clk 00:00:17]} {[%emt 00:00:25]} 47. Ra7
{[%clk 00:04:21]} {[%emt 00:00:27]} d3 {[%clk 00:00:19]} {[%emt 00:00:02]} 0-1